bitfinex-derivatives/quotes_ETHF0:USTF0_20260310
["timestamp","ask_amount","ask_price","bid_price","bid_amount"]
[1773152417005,1.16693514,2017.4,2016.6,0.00442468]
[1773152417915,1.16693514,2017.4,2016.6,1.20210506]
[1773152418214,1.16693514,2017.8,2016.6,1.20210506]
[1773152418611,1.16693514,2017.8,2016.6,1.45002506]
[1773152419016,1.16693514,2018.2,2017.1,1.19768038]
[1773152419712,1.16693514,2018.7,2017.5,1.19768038]
[1773152420513,1.16693514,2018.7,2017.7,1.19768038]
[1773152420715,0.00437615,2018.8,2017.7,7.69068038]
[1773152421015,1.17131129,2018.8,2017.8,1.19768038]
[1773152421411,1.16693514,2019.0,2018.0,1.19768038]
[1773152421619,1.16693514,2019.0,2017.6,10.5963256]
[1773152421620,1.16693514,2019.0,2017.8,1.19768038]
[1773152422615,1.17235097,2019.0,2017.8,1.19768038]
[1773152423214,1.17235097,2019.0,2018.0,1.19768038]
[1773152423622,1.16693514,2019.3,2018.2,1.19768038]
[1773152424220,1.16693514,2019.5,2018.4,1.19768038]
[1773152424620,1.17072824,2019.5,2018.4,1.20390826]
[1773152426318,1.17072824,2019.5,2018.4,0.00622788]
[1773152426520,1.17072824,2019.5,2018.0,1.19768038]
[1773152426521,1.16693514,2019.3,2018.0,1.19768038]
[1773152426719,1.16693514,2019.2,2018.0,1.19768038]
[1773152426920,1.41454514,2019.2,2018.0,1.19768038]
[1773152427722,1.41454514,2019.2,2018.0,1.20242534]
[1773152427921,1.41454514,2019.2,2018.0,0.00474496]
[1773152428125,1.41454514,2019.2,2018.0,1.20242534]
[1773152428514,1.16693514,2019.2,2018.0,1.20242534]
[1773152428715,1.16693514,2019.2,2018.2,1.19768038]
[1773152429823,1.17072824,2019.5,2018.2,1.19768038]
[1773152432224,1.07072824,2019.5,2018.2,1.19768038]
[1773152433230,1.07607067,2019.5,2018.4,1.19768038]
[1773152436228,1.32365067,2019.5,2018.4,1.19768038]
[1773152436529,1.16230609,2019.0,2018.0,0.00474496]
[1773152437128,1.16230609,2019.0,2018.0,1.1683331]
[1773152437329,1.16230609,2019.0,2018.0,1.4160831]
[1773152437631,0.00534243,2019.5,2018.0,1.4160831]
[1773152437632,1.16230609,2019.3,2018.0,1.4160831]
[1773152442028,1.16230609,2019.1,2018.0,1.4160831]
[1773152442235,1.16230609,2018.9,2018.0,1.1683331]
[1773152442431,1.16230609,2018.9,2018.2,1.16358814]
[1773152443133,1.16230609,2019.3,2018.3,1.41130814]
[1773152443632,1.16230609,2019.1,2018.1,1.16358814]
[1773152443928,1.16230609,2018.7,2018.0,0.00474496]
[1773152444728,0.24768,2018.6,2018.0,0.00474496]
[1773152444933,1.16230609,2018.5,2017.6,1.16358814]
[1773152445930,1.16230609,2018.5,2017.6,1.16835988]
[1773152446533,1.19405713,2018.3,2017.6,0.00477174]
[1773152447128,1.19405713,2018.3,2017.6,1.24371029]
[1773152447532,1.19405713,2018.8,2017.6,1.24371029]
[1773152448137,1.19405713,2018.8,2017.6,1.49151029]
[1773152449640,1.19405713,2018.6,2017.6,1.24371029]
[1773152451039,1.19405713,2018.6,2017.8,1.23893855]
[1773152453638,1.19405713,2019.1,2018.0,1.23893855]
[1773152453837,1.19405713,2018.9,2018.0,1.23893855]
[1773152454637,0.24765,2018.8,2017.8,1.23893855]
[1773152454938,1.19405713,2018.7,2017.6,1.24371029]
[1773152455637,1.19405713,2018.7,2017.8,1.23893855]
[1773152457238,1.19405713,2018.7,2018.0,1.23893855]
[1773152458035,1.19405713,2018.7,2017.9,0.24777]
[1773152458345,1.19405713,2018.7,2017.8,1.23893855]
[1773152458747,1.19405713,2018.5,2017.6,1.24371029]
[1773152462056,1.19405713,2018.5,2017.7,1.23893855]
[1773152462748,1.19405713,2018.5,2017.6,0.00477174]
[1773152463550,1.19405713,2018.5,2017.6,1.24371029]
[1773152463951,1.22135927,2018.7,2017.7,1.22690992]
[1773152464551,1.22135927,2018.7,2017.9,1.22690992]
[1773152464751,1.22135927,2018.9,2018.0,1.47465992]
[1773152464951,0.24762,2019.1,2018.3,1.22690992]
[1773152464952,1.22135927,2019.1,2018.3,1.22690992]
[1773152466752,0.00534243,2019.5,2018.3,1.22690992]
[1773152466753,0.00534243,2019.5,2018.9,1.22690992]
[1773152466953,1.22135927,2019.9,2019.1,1.22690992]
[1773152467160,1.22135927,2020.4,2019.1,1.22690992]
[1773152467460,1.22135927,2020.2,2019.1,1.22690992]
[1773152467858,1.22652734,2020.2,2019.1,1.2308027]
[1773152468054,7.36010478,2020.1,2019.1,0.00389278]
[1773152468264,1.22135927,2019.9,2019.1,0.00389278]
[1773152468467,1.22135927,2019.7,2019.1,0.00389278]
[1773152468660,1.22135927,2019.7,2018.3,1.22690992]
[1773152468962,1.22135927,2019.3,2018.1,1.22690992]
[1773152469166,1.22135927,2019.1,2018.1,1.22690992]
[1773152469364,1.22135927,2019.1,2017.8,1.22690992]
[1773152469765,1.22135927,2018.9,2017.8,1.23312716]
[1773152470165,1.22135927,2018.9,2017.8,0.00621724]
[1773152470359,1.22135927,2018.7,2017.8,0.00621724]
[1773152470560,1.22630271,2018.7,2017.8,0.00621724]
[1773152471072,1.46905927,2018.4,2017.1,1.22690992]
[1773152471262,0.24775,2018.0,2016.8,1.22690992]
[1773152471572,1.22135927,2017.9,2016.8,1.22690992]
[1773152471970,1.22135927,2017.9,2016.8,1.23092795]
[1773152472668,1.22135927,2017.7,2016.8,0.00401803]
[1773152473269,1.22135927,2017.5,2016.1,1.22690992]
[1773152473471,1.22135927,2017.3,2016.1,1.22690992]
[1773152473665,1.22135927,2017.2,2016.1,1.22690992]
[1773152474272,1.22488006,2017.2,2016.1,1.23320261]
[1773152475865,0.00352079,2017.2,2016.3,1.22690992]
[1773152476067,0.00352079,2017.2,2016.6,1.22690992]
[1773152476470,1.22135927,2017.9,2016.6,1.22690992]
[1773152476670,1.22135927,2017.9,2016.9,1.22690992]
[1773152477365,1.22135927,2017.9,2016.6,1.22690992]
[1773152477668,1.22135927,2017.5,2016.3,1.22690992]
[1773152477873,1.22135927,2017.5,2016.6,1.22690992]
[1773152482267,1.22135927,2017.5,2016.2,2.94537494]
[1773152482268,1.22135927,2017.5,2016.2,1.22690992]
[1773152482867,1.22135927,2017.8,2016.6,1.22690992]
[1773152483264,1.22135927,2017.8,2016.9,1.22690992]
[1773152483469,0.00556862,2017.9,2016.9,1.22690992]
[1773152484274,1.22692789,2017.9,2016.9,1.22690992]
[1773152484672,0.00556862,2017.9,2017.2,1.22690992]
[1773152485874,1.22135927,2018.5,2017.5,1.22690992]
[1773152486271,1.22135927,2018.5,2017.5,1.47471992]
[1773152486873,1.47512764,2018.5,2017.1,1.22690992]
[1773152487676,1.22742764,2018.5,2017.5,1.22690992]
[1773152488581,1.22135927,2018.3,2017.2,1.22690992]
[1773152488778,1.22135927,2018.3,2017.4,1.22690992]
[1773152489174,0.00606837,2018.5,2017.5,1.22690992]
[1773152489377,1.22742764,2018.5,2017.5,1.22690992]
[1773152490683,1.22742764,2018.5,2017.8,1.22690992]
[1773152490885,1.22742764,2018.5,2017.8,1.23252592]
[1773152491086,1.22742764,2018.5,2017.8,0.005616]
[1773152491782,1.22742764,2018.5,2017.3,1.22690992]
[1773152491986,1.22135927,2018.4,2017.3,1.22690992]
[1773152492187,1.22135927,2018.4,2016.9,1.22690992]
[1773152492690,1.46905927,2018.4,2016.9,1.22690992]
[1773152492988,1.46905927,2018.4,2017.1,1.22690992]
[1773152493986,1.46905927,2018.4,2017.2,1.16067121]
[1773152493987,1.22135927,2018.4,2017.2,1.16067121]
[1773152495394,1.24076286,2018.2,2017.2,1.16067121]
[1773152496088,1.24076286,2018.4,2017.5,1.16067121]
[1773152496293,0.00606837,2018.5,2017.7,4.10604615]
[1773152496490,1.24076286,2019.0,2017.8,1.40845121]
[1773152497594,1.24476558,2019.0,2018.1,1.16067121]
[1773152497796,1.24476558,2019.0,2018.4,1.16067121]
[1773152497797,0.00400272,2019.0,2018.4,1.16067121]
[1773152497996,1.24476558,2019.0,2018.4,1.16550866]
[1773152498692,0.00400272,2019.0,2018.4,1.16550866]
[1773152500394,1.24076286,2019.5,2018.4,1.16550866]
[1773152500598,1.24076286,2019.3,2018.4,0.00483745]
[1773152501300,1.24669879,2019.3,2018.4,1.16550866]
[1773152502294,1.24076286,2019.1,2018.1,1.16067121]
[1773152503390,1.24076286,2019.1,2018.1,1.1655396]
[1773152507001,1.24076286,2019.1,2018.3,1.19367799]
[1773152509202,1.14700118,2019.3,2018.4,1.19367799]
[1773152510101,0.00593593,2019.3,2018.6,1.19367799]
[1773152510306,0.00593593,2019.3,2018.7,1.19367799]
[1773152511106,1.14106525,2020.1,2018.9,1.19367799]
[1773152511600,1.14106525,2019.9,2018.9,1.19367799]
[1773152512006,1.14616556,2019.9,2018.9,1.19367799]
[1773152512301,6.08733,2020.5,2019.3,1.19367799]
[1773152512302,1.14106525,2020.2,2019.3,1.19367799]
[1773152512503,1.14106525,2020.4,2019.3,1.19367799]
[1773152512802,1.14106525,2020.4,2019.5,1.19367799]
[1773152513602,1.14106525,2020.4,2018.7,0.24766]
[1773152513603,1.14106525,2020.2,2019.2,1.19367799]
[1773152516003,1.14681246,2020.4,2019.3,1.19367799]
[1773152516208,0.00574721,2020.4,2019.5,1.19367799]
[1773152516401,1.14106525,2020.9,2019.7,1.19367799]
[1773152516604,1.14106525,2020.9,2019.8,1.19367799]
[1773152517409,1.14705669,2020.9,2019.8,1.19972924]
[1773152517811,1.14106525,2021.5,2020.7,1.19367799]
[1773152518108,1.14106525,2021.5,2020.7,0.90058287]
[1773152518308,9.02807494,2022.1,2020.3,6.488]
[1773152518309,1.14106525,2021.3,2020.3,1.19367799]
[1773152518710,1.14696189,2021.3,2020.3,1.19367799]
[1773152519114,1.14696189,2021.3,2019.9,2.94537494]
[1773152519115,1.14106525,2021.1,2020.1,1.19367799]
[1773152519713,0.00589664,2021.3,2020.3,1.19367799]
[1773152520118,0.00589664,2021.3,2020.5,1.19367799]
[1773152520316,1.14696189,2021.3,2019.9,2.94537494]
[1773152520514,1.14696189,2021.3,2020.3,1.19367799]
[1773152520819,1.14696189,2021.3,2020.3,7.68067799]
[1773152521014,1.14696189,2021.3,2020.1,1.19367799]
[1773152521321,1.14696189,2021.3,2020.2,1.19367799]
[1773152521521,1.14106525,2021.1,2019.9,7.67967799]
[1773152521716,1.14106525,2021.1,2020.0,1.19367799]
[1773152521923,1.14106525,2020.9,2019.7,1.19367799]
[1773152522116,1.14106525,2020.9,2019.8,1.19972924]
[1773152523018,1.14106525,2021.2,2020.0,1.19367799]
[1773152523413,1.14106525,2021.2,2020.2,1.19367799]
[1773152523625,0.00589664,2021.3,2020.2,1.19367799]
[1773152524412,0.00589664,2021.3,2020.4,1.1942427]
[1773152525325,1.13521227,2021.6,2020.6,1.1942427]
[1773152526217,1.1396195,2021.6,2020.6,1.1942427]
[1773152527314,1.1396195,2021.6,2020.6,7.6792427]
[1773152527520,1.1396195,2021.6,2020.6,1.1942427]
[1773152528122,1.13521227,2021.4,2019.9,1.1942427]
[1773152528320,1.13521227,2021.4,2019.7,0.24754]
[1773152528321,1.13521227,2021.4,2020.3,1.1942427]
[1773152529222,1.13521227,2021.0,2020.0,1.1942427]
[1773152529426,6.08431,2021.5,2020.0,1.1942427]
[1773152529427,1.13521227,2020.8,2020.0,1.1942427]
[1773152529623,1.13521227,2020.6,2019.8,0.00605125]
[1773152530027,1.13521227,2020.6,2019.8,1.20029395]
[1773152530234,0.24736,2021.2,2019.8,1.20029395]
[1773152530235,1.13521227,2021.1,2019.8,1.20029395]
[1773152530727,1.13521227,2021.1,2020.0,1.1942427]
[1773152530926,1.13521227,2021.1,2020.1,1.1942427]
[1773152531324,1.13521227,2020.9,2019.9,1.1942427]
[1773152531524,1.13521227,2020.7,2019.8,0.00605125]
[1773152531825,0.24741,2020.8,2019.2,1.1942427]
[1773152531826,1.13521227,2020.3,2019.2,1.1942427]
[1773152532530,1.38269227,2020.2,2019.2,1.1942427]
[1773152532831,1.38269227,2020.2,2018.8,1.1942427]
[1773152533024,1.38269227,2020.2,2018.8,1.44734148]
[1773152533425,1.38269227,2020.2,2018.9,7.6782427]
[1773152533630,1.38269227,2020.2,2019.0,1.1942427]
[1773152534728,1.38269227,2020.2,2018.8,7.68369148]
[1773152534929,1.38269227,2020.2,2018.9,1.1942427]
[1773152535729,1.13521227,2020.2,2018.9,1.4418827]
[1773152537626,1.13521227,2020.2,2019.1,1.1942427]
[1773152538526,1.13521227,2020.2,2019.2,1.1942427]
[1773152538729,1.13521227,2021.5,2020.1,1.1942427]
[1773152538932,1.13521227,2021.5,2020.0,2.93879335]
[1773152538933,1.13521227,2021.5,2020.3,1.1942427]
[1773152539133,1.13521227,2021.5,2020.3,1.19918165]
[1773152539529,1.38254227,2021.5,2020.3,1.19918165]
[1773152539734,1.38254227,2021.5,2020.3,0.00493895]
[1773152540233,1.13521227,2021.5,2020.3,1.19918165]
[1773152540826,1.13521227,2021.5,2020.4,1.1942427]
[1773152541025,1.13521227,2021.3,2020.4,1.1942427]
[1773152541235,1.13521227,2021.3,2020.3,1.19918165]
[1773152541433,1.13521227,2020.9,2019.7,1.1942427]
[1773152541934,1.13521227,2020.9,2019.8,1.1942427]
[1773152542237,1.13521227,2020.3,2019.5,1.1942427]
[1773152542432,1.13521227,2020.3,2019.5,0.00395292]
[1773152542632,1.13521227,2020.3,2019.5,1.19819562]
[1773152545032,1.13521227,2020.1,2019.1,1.1942427]
[1773152545237,1.13521227,2019.9,2018.9,1.1942427]
[1773152545638,1.13521227,2019.7,2018.9,1.1942427]
[1773152545934,1.13521227,2019.7,2018.7,1.1942427]
[1773152546235,1.13521227,2019.5,2018.7,0.00609552]
[1773152546946,1.1394391,2019.7,2018.7,1.20033822]
[1773152547933,0.00422683,2019.7,2018.9,1.1942427]
[1773152548330,0.00422683,2019.7,2019.1,1.1942427]
[1773152549239,1.13521227,2020.2,2019.1,1.1942427]
[1773152549934,1.13521227,2020.6,2019.1,1.4418527]
[1773152550136,4.04697902,2021.1,2019.1,1.4418527]
[1773152550137,1.13521227,2021.1,2019.6,1.1942427]
[1773152550335,1.13521227,2020.7,2019.6,1.1942427]
[1773152550736,1.13521227,2020.7,2019.7,1.1942427]
[1773152552939,1.13521227,2020.7,2019.8,7.6792427]
[1773152553244,1.13521227,2021.0,2020.0,1.1942427]
[1773152553435,1.13521227,2021.0,2020.2,1.1942427]
[1773152553635,0.00395126,2021.1,2020.2,1.20053619]
[1773152554040,0.00395126,2021.1,2020.4,1.13172659]
[1773152554241,0.00395126,2021.1,2020.5,1.13172659]
[1773152554541,0.24729,2021.8,2020.5,1.13172659]
[1773152554542,1.20319352,2021.3,2020.6,1.13172659]
[1773152554742,1.20319352,2021.7,2020.6,1.13172659]
[1773152555038,1.20319352,2021.5,2020.6,1.13172659]
[1773152555244,1.20319352,2021.5,2020.4,7.61672659]
[1773152555442,1.20319352,2021.5,2020.4,1.13172659]
[1773152555643,1.20839556,2021.5,2020.4,1.13172659]
[1773152556535,1.20319352,2021.3,2020.2,7.62302008]
[1773152556735,1.20319352,2021.1,2020.2,0.00629349]
[1773152557340,1.20319352,2021.1,2020.2,1.13802008]
[1773152558742,1.20319352,2020.9,2019.6,1.13172659]
[1773152559640,1.20319352,2020.7,2019.6,1.13172659]
[1773152559944,1.20319352,2020.7,2019.6,1.13735123]
[1773152560540,1.20319352,2020.7,2019.7,6.484]
[1773152560739,1.20319352,2020.7,2019.8,1.13172659]
[1773152561443,1.20319352,2020.7,2019.6,1.13735123]
[1773152562244,1.20319352,2020.5,2019.6,1.13735123]
[1773152563349,1.20319352,2020.5,2019.7,1.13172659]
[1773152564250,1.20319352,2020.7,2019.7,1.37926659]
[1773152564447,1.20319352,2021.0,2019.7,1.37926659]
[1773152565548,1.20319352,2020.8,2019.7,1.13172659]
[1773152565853,1.20319352,2020.8,2019.8,1.13172659]
[1773152567253,1.20319352,2020.8,2019.9,7.60682491]
[1773152567450,1.20319352,2020.8,2019.9,1.12282491]
[1773152567651,1.0926889,2020.6,2019.6,7.61244955]
[1773152567955,1.0926889,2020.6,2019.7,1.12282491]
[1773152569052,0.24737,2021.2,2019.7,1.12282491]
[1773152569259,1.0926889,2021.1,2019.9,1.12282491]
[1773152569549,1.0926889,2021.1,2020.1,1.12282491]
[1773152570257,1.0926889,2021.4,2020.1,1.12282491]
[1773152570960,1.0926889,2021.4,2020.3,1.12282491]
[1773152571555,1.0926889,2021.4,2020.5,1.12282491]
[1773152571954,1.0926889,2021.4,2020.5,7.60682491]
[1773152572459,1.0926889,2021.4,2020.6,1.12282491]
[1773152573657,1.0926889,2021.4,2020.6,7.60682491]
[1773152574159,1.0926889,2021.4,2020.6,1.12282491]
[1773152575355,0.00520204,2021.5,2020.6,1.12282491]
[1773152576164,1.0926889,2021.8,2020.6,1.12282491]
[1773152576657,1.0926889,2021.8,2020.8,1.12282491]
[1773152576862,1.0926889,2022.0,2020.8,1.12282491]
[1773152577058,1.09651209,2022.0,2021.0,1.12282491]
[1773152577660,0.00382319,2022.0,2021.0,1.12282491]
[1773152577861,1.09651209,2022.0,2021.0,1.12282491]
[1773152578261,1.09651209,2022.0,2021.0,7.60582491]
[1773152578457,1.09651209,2022.0,2021.1,1.12282491]
[1773152578658,1.0926889,2022.4,2021.1,1.37500649]
[1773152578859,1.0926889,2022.6,2021.3,1.37017491]
[1773152579460,1.0926889,2022.6,2021.3,1.12282491]
[1773152579754,1.0926889,2022.6,2021.5,1.12282491]
[1773152580061,1.09802377,2022.6,2021.5,1.12282491]
[1773152580458,1.09802377,2022.6,2021.6,6.482]
[1773152580659,1.09802377,2022.6,2021.4,1.12282491]
[1773152580967,1.0926889,2022.4,2021.4,1.12282491]
[1773152581960,0.00533487,2022.6,2021.2,7.60482491]
[1773152581961,1.0926889,2022.2,2021.2,7.60482491]
[1773152582258,1.0926889,2022.2,2021.2,1.12282491]
[1773152582559,1.0926889,2022.2,2021.1,0.00481158]
[1773152582560,1.0926889,2022.2,2021.1,6.48581158]
[1773152582866,1.0926889,2022.0,2021.1,0.00481158]
[1773152583061,1.0926889,2022.0,2021.1,1.12763649]
[1773152583462,1.0926889,2022.5,2021.1,1.12763649]
[1773152583661,1.0926889,2022.5,2021.4,1.07864026]
[1773152583864,1.0926889,2022.5,2021.5,1.07864026]
[1773152584267,1.0926889,2022.5,2021.6,1.07864026]
[1773152584564,1.0926889,2022.5,2021.1,2.9391839]
[1773152584565,1.0926889,2022.5,2021.4,1.07864026]
[1773152585461,1.10864892,2022.3,2021.5,1.07864026]
[1773152585766,1.10864892,2022.1,2021.2,1.07864026]
[1773152586168,1.10864892,2022.3,2021.2,1.07864026]
[1773152586367,1.10864892,2022.3,2021.3,7.55964026]
[1773152586566,1.10864892,2022.3,2021.4,1.07864026]
[1773152587759,1.10864892,2022.1,2021.4,1.07864026]
[1773152588670,1.10864892,2022.1,2021.2,6.48]
[1773152588867,1.10864892,2022.1,2021.3,1.07864026]
[1773152589069,1.10864892,2022.4,2021.5,2.93437232]
[1773152589270,1.10864892,2022.4,2021.6,1.07864026]
[1773152589770,1.11398379,2022.6,2021.7,1.07864026]
[1773152589966,1.11398379,2022.6,2021.5,2.93437232]
[1773152589967,0.00533487,2022.6,2021.9,1.07864026]
[1773152590174,1.10864892,2022.9,2022.2,1.07864026]
[1773152590763,1.88588053,2023.1,2022.2,1.07864026]
[1773152591272,1.10864892,2023.0,2022.3,1.07864026]
[1773152591475,0.78166826,2023.1,2022.4,1.07864026]
[1773152591768,1.10864892,2023.7,2022.6,1.07864026]
[1773152592169,1.10864892,2023.7,2022.9,1.07864026]
[1773152592568,1.11471545,2023.7,2022.9,1.08235316]
[1773152592774,1.11471545,2023.7,2022.9,0.0037129]
[1773152593172,0.00606653,2023.7,2022.9,1.08235316]
[1773152593374,1.11471545,2023.7,2022.9,1.08235316]
[1773152593578,1.11471545,2023.7,2022.9,0.0037129]
[1773152593774,1.10864892,2023.5,2022.9,0.0037129]
[1773152594078,1.10864892,2023.5,2022.6,7.55764026]
[1773152594476,1.11471545,2023.7,2022.7,1.07864026]
[1773152594670,1.11471545,2023.7,2022.2,0.24723]
[1773152594671,1.11471545,2023.7,2022.8,7.55764026]
[1773152594973,1.11471545,2023.7,2022.8,1.08222136]
[1773152595280,1.36178545,2023.7,2022.8,0.0035811]
[1773152595469,7.43955545,2023.7,2022.8,0.0035811]
[1773152595673,1.10864892,2023.2,2022.2,1.07864026]
[1773152596076,6.07856,2023.5,2021.8,2.93437232]
[1773152596077,1.10864892,2023.0,2021.8,2.93437232]
[1773152596278,1.10864892,2022.8,2021.9,1.07864026]
[1773152596773,1.10864892,2022.8,2021.9,1.08342367]
[1773152597772,1.35579892,2022.9,2021.9,1.08342367]
[1773152597973,6.08383653,2023.7,2021.9,1.08342367]
[1773152597974,1.10864892,2023.3,2022.2,1.07864026]
[1773152598579,1.10864892,2023.3,2022.3,1.07864026]
[1773152599273,1.10864892,2023.5,2022.5,1.07864026]
[1773152599469,1.10864892,2023.5,2022.8,1.07864026]
[1773152599674,1.10864892,2023.5,2022.6,1.07864026]
[1773152600077,1.10864892,2023.3,2022.4,1.07864026]
[1773152601079,1.10864892,2023.1,2022.2,1.07864026]
[1773152601375,1.10864892,2022.9,2021.9,0.00478341]
[1773152602174,1.10864892,2022.9,2021.9,1.08342367]
[1773152602874,1.10864892,2022.7,2021.9,0.00478341]
[1773152603478,1.10864892,2022.5,2021.9,0.00478341]
[1773152603879,1.10864892,2022.5,2021.5,1.07864026]
[1773152604078,1.10864892,2022.3,2021.1,1.07864026]
[1773152604378,1.10864892,2022.3,2021.2,1.07864026]
[1773152604580,1.10864892,2022.3,2021.4,1.07864026]
[1773152604980,1.10864892,2022.3,2021.4,1.08479379]
[1773152605576,1.10864892,2022.3,2021.4,0.00615353]
[1773152606386,1.10864892,2022.1,2021.4,0.00615353]
[1773152606584,1.11460552,2022.1,2021.4,0.00615353]
[1773152607385,1.11460552,2022.1,2021.4,1.08479379]
[1773152607782,1.11460552,2022.1,2021.4,0.00615353]
[1773152608281,1.11460552,2022.1,2021.4,1.08479379]
[1773152609081,1.11460552,2022.1,2021.4,0.00615353]
[1773152609685,1.11460552,2022.1,2020.9,7.55664026]
[1773152609885,1.11460552,2022.1,2021.0,1.07864026]
[1773152610278,1.10864892,2021.9,2020.8,1.07864026]
[1773152610682,1.10864892,2021.9,2020.8,1.08309227]
[1773152611383,1.10864892,2021.9,2021.2,1.07864026]
[1773152612485,1.10864892,2021.9,2021.0,1.07864026]
[1773152613687,1.09965456,2022.1,2021.2,1.14192756]
[1773152614689,1.09965456,2022.1,2020.9,1.14192756]
[1773152614885,1.09965456,2022.1,2021.0,1.14192756]
[1773152615485,1.09965456,2022.1,2020.8,0.00445201]
[1773152615486,1.34691456,2022.1,2020.8,1.14637957]
[1773152616086,0.2473,2021.7,2020.8,1.14637957]
[1773152616287,1.09369796,2021.9,2020.9,1.14192756]
[1773152618086,0.0059566,2022.1,2021.4,1.14192756]
[1773152618687,1.09965456,2022.1,2021.4,1.14192756]
[1773152618892,0.0059566,2022.1,2021.4,1.14192756]
[1773152620190,1.09965456,2022.1,2021.4,1.14192756]
[1773152621191,1.09965456,2022.1,2021.1,1.14192756]
[1773152621687,1.09369796,2021.9,2021.1,1.14192756]
[1773152622897,1.09965456,2022.1,2021.1,1.14192756]
[1773152624994,1.09965456,2022.1,2021.3,1.14192756]
[1773152625393,0.0059566,2022.1,2021.3,1.14192756]
[1773152626494,1.08281563,2022.1,2021.3,1.14192756]
[1773152628896,1.07685903,2022.6,2021.7,1.11094769]
[1773152629691,1.08053547,2022.6,2021.7,1.11094769]
[1773152631291,0.00367644,2022.6,2021.9,1.11094769]
[1773152631495,1.08053547,2022.6,2021.9,1.11094769]
[1773152631897,0.00367644,2022.6,2021.9,1.11094769]
[1773152632494,1.08053547,2022.6,2021.9,1.11094769]
[1773152634387,0.00367644,2022.6,2021.9,1.11094769]
[1773152634994,1.07685903,2023.0,2022.1,1.11094769]
[1773152635898,1.08147085,2023.0,2022.1,1.11094769]
[1773152637392,1.07685903,2023.3,2022.6,1.11094769]
[1773152637901,1.07685903,2023.7,2022.6,1.11094769]
[1773152638498,0.00559799,2023.7,2022.8,1.11094769]
[1773152638897,1.08245702,2023.7,2022.8,1.11094769]
[1773152639499,0.00559799,2023.7,2023.0,1.11094769]
[1773152639895,1.08245702,2023.7,2022.7,1.11094769]
[1773152640501,1.07685903,2023.5,2022.6,1.11653748]
[1773152640893,1.07685903,2023.3,2022.6,0.00558979]
[1773152642804,1.07685903,2023.1,2022.1,1.11094769]
[1773152643306,1.07685903,2023.1,2021.7,1.11094769]
[1773152643500,1.07685903,2023.1,2021.9,1.11094769]
[1773152643701,1.07685903,2023.1,2021.9,1.11537513]
[1773152644197,1.07445116,2022.9,2021.9,1.11537513]
[1773152644404,1.07445116,2022.7,2021.9,1.11537513]
[1773152644598,1.07445116,2023.2,2021.9,1.36264513]
[1773152644804,1.07445116,2023.0,2021.9,1.11537513]
[1773152648009,1.07445116,2023.0,2022.1,1.15230612]
[1773152649107,1.07445116,2023.0,2021.9,1.15673356]
[1773152649507,1.32160116,2023.0,2021.9,1.15673356]
[1773152649709,1.32160116,2023.0,2021.9,0.00442744]
[1773152649911,1.07445116,2022.9,2021.9,0.00442744]
[1773152650310,1.07445116,2022.7,2021.6,1.15230612]
[1773152650609,1.07445116,2022.5,2021.1,1.15230612]
[1773152651000,1.07445116,2022.3,2021.1,1.15230612]
[1773152651406,1.07445116,2022.3,2021.1,1.15858843]
[1773152651707,1.07445116,2022.1,2021.1,1.15858843]
[1773152651907,1.08041537,2022.1,2021.1,1.15858843]
[1773152654411,1.07445116,2022.3,2021.5,1.15230612]
[1773152655514,1.07890045,2022.3,2021.5,1.15230612]
[1773152657518,1.07890045,2022.3,2021.2,1.15230612]
[1773152658025,1.07890045,2022.3,2021.4,1.15230612]
[1773152659727,0.00444929,2022.3,2021.6,1.15230612]
[1773152659925,4.08262055,2023.2,2021.3,1.15230612]
[1773152659926,1.07445116,2022.8,2021.3,1.15230612]
[1773152660117,1.07445116,2022.8,2021.4,1.15230612]
[1773152660425,1.07445116,2022.8,2021.6,1.15230612]
[1773152660630,7.55245116,2023.2,2021.8,1.15230612]
[1773152660822,1.08045642,2023.2,2022.4,1.15230612]
[1773152661128,0.00600526,2023.2,2022.4,1.15230612]
[1773152661525,0.00600526,2023.2,2022.5,0.2472]
[1773152661723,1.07445116,2023.6,2022.8,1.15230612]
[1773152662725,1.07879575,2023.6,2022.8,1.15809648]
[1773152663530,1.07879575,2023.6,2022.8,0.00579036]
[1773152663728,1.32587575,2023.6,2022.8,0.00579036]
[1773152664029,1.32587575,2023.6,2022.4,1.15230612]
[1773152664219,1.07879575,2023.6,2022.5,0.2472]
[1773152664424,1.07879575,2023.6,2022.6,1.15230612]
[1773152664828,1.07879575,2023.6,2022.6,1.15844928]
[1773152665029,1.07879575,2023.6,2022.6,0.00614316]
[1773152665324,1.07879575,2023.6,2022.6,1.15844928]
[1773152665931,1.07879575,2023.6,2022.6,0.00614316]
[1773152666629,1.07445116,2023.4,2022.6,0.00614316]
[1773152668224,1.07445116,2023.4,2021.6,16.36843313]
[1773152668225,1.07445116,2023.2,2022.0,1.15230612]
[1773152668430,6.07862,2023.4,2021.5,1.15230612]
[1773152668431,1.07445116,2023.0,2021.5,1.15230612]
[1773152668823,10.16124055,2023.4,2021.5,1.15230612]
[1773152668824,1.07445116,2022.8,2021.5,1.15230612]
[1773152669034,1.07445116,2022.7,2021.5,1.15230612]
[1773152669334,1.07445116,2022.7,2021.5,1.15736283]
[1773152670225,1.07445116,2022.7,2021.7,1.15230612]
[1773152670632,1.07445116,2022.7,2021.9,1.15230612]
[1773152671032,1.07445116,2022.7,2022.1,1.15230612]
[1773152671632,1.07445116,2023.1,2022.1,1.15230612]
[1773152672538,1.07445116,2022.7,2021.6,1.15230612]
[1773152672838,1.07445116,2022.7,2021.5,1.15736283]
[1773152673634,1.15679163,2022.3,2021.5,0.00505671]
[1773152674134,1.15679163,2022.3,2021.5,1.07227579]
[1773152674535,1.15679163,2022.3,2021.5,0.00505671]
[1773152675035,1.15679163,2022.1,2021.1,1.06721908]
[1773152675938,1.16247565,2022.1,2021.1,1.07353617]
[1773152676145,1.15679163,2021.9,2021.1,0.00631709]
[1773152677538,1.15679163,2021.9,2020.6,1.06721908]
[1773152677735,1.15679163,2021.7,2020.6,1.06721908]
[1773152678640,1.15679163,2021.7,2020.8,1.06721908]
[1773152679743,1.15679163,2021.7,2020.6,1.07164579]
[1773152680440,1.15679163,2021.7,2020.6,1.31907579]
[1773152681439,1.15679163,2022.0,2021.0,1.31459908]
[1773152683843,0.00568402,2022.1,2021.3,1.06721908]
[1773152684145,1.16247565,2022.1,2021.1,1.06721908]
[1773152684845,1.15679163,2022.0,2020.9,1.06721908]
[1773152685645,1.15679163,2021.8,2020.9,1.06721908]
[1773152685942,1.15679163,2021.8,2020.7,1.06721908]
[1773152686343,1.15679163,2021.6,2020.6,0.00442671]
[1773152686545,1.06449944,2021.4,2020.6,0.00442671]
[1773152686946,1.06449944,2021.4,2020.6,1.09229737]
[1773152687637,1.06449944,2021.9,2020.7,0.24742]
[1773152687946,1.06449944,2021.9,2021.0,1.08787066]
[1773152688651,1.06449944,2021.9,2021.2,1.08787066]
[1773152688942,1.07018346,2022.1,2021.2,1.08787066]
[1773152690642,1.31744346,2022.1,2021.0,1.08787066]
[1773152691949,1.07018346,2022.1,2021.0,1.33525066]
[1773152695245,1.07018346,2022.1,2021.0,1.08787066]
[1773152696546,0.24726,2022.0,2021.0,1.08787066]
[1773152696750,1.06449944,2021.9,2021.0,1.08787066]